Workbook

Sheet List1
A3: Obec , IČ: Náklo, 00299251
A5: Rozpočtové opatření č. 1 - leden 2022
A7: V souladu s ustanovením § 16 zákona č. 250/2000 Sb., o rozpočtových pravidlech územních rozpočtů dojde k rozpočtovému
A8: opatření v případě změn rozpočtových prostředků na závazných ukazatelích.
A10: Rozpočtové opatření č. 1/2022 (předloženo na Radě obce 10.1. 2022) a doplněno při jednání na Radě obce
A12: PŘÍJMY
A13: PAR | B13: POL | C13: UZ | D13: PARAGRAF | E13: popis | F13: Rozpočet na rok 2022 | G13: změna ROZP | H13: ROZP po ZMĚNĚ | I13: POZNÁMKA
D16: Celkem ZMĚNY v PŘÍJMECH | F16: 33700619.7 | G16: 0 | H16: 33700619.7
D18: Celkem PŘÍJMY | G18: 44461007.11 | H18: 1827230.19 | I18: 46288237.3
A20: VÝDAJE:
A21: PAR | B21: POL | C21: UZ | D21: PARAGRAF | E21: popis | F21: Rozpočet na rok 2022 | G21: změna ROZP | H21: ROZP po ZMĚNĚ | I21: POZNÁMKA
A22: 6171 | B22: 5222 | E22: Neinvestiční transfery spolkům | F22: 6000 | G22: 480 | H22: =G22+F22 -> 6480 | I22: Sdružení místních samospráv - členský příspěvek na rok 2022
A23: 6171 | B23: 5329 | E23: ostatní neivestiční transfery rozpočtům územní úrovně | F23: 45000 | G23: 11979 | H23: =G23+F23 -> 56979 | I23: členské příspěvky na rok 2022
A24: 6171 | B24: 5137 | E24: Drobný hmotný dlouhodobý majetek | F24: 30000 | G24: 20000 | H24: =G24+F24 -> 50000 | I24: Židle obecní úřad
A25: 6171 | B25: 5622 | E25: Neinvestiční půjčené prostředky spolkům | F25: 275999 | G25: -275999 | H25: 0 | I25: návratná finanční výpomoc DSO Region Moravská cesta
A26: 6171 | B26: 5649 | E26: Ostatní neinvestiční půjčené prostředky rozp.územní úrovně | F26: 0 | G26: 275999 | I26: návratná finanční výpomoc DSO Region Moravská cesta
A27: 6171 | B27: 5169 | E27: Nákup ostatních služeb | F27: 1500000 | G27: -248102.96 | H27: =G27+F27 -> 1251897.04
A28: 6171 | D28: Činnost místní samosprávy | F28: 5427999 | G28: =SUM(G22:G27) -> -215643.96 | H28: =G28+F28 -> 5212355.04
A29: 3729 | B29: 5141 | E29: úroky vlastní | F29: 5000 | G29: -5000 | H29: 0
A30: 3729 | B30: 5163 | E30: služba peněžních ústavů | F30: 3000 | G30: -3000 | H30: 0
A31: 3729 | D31: Ostatní nakládání s odpady | F31: 8000 | G31: -8000 | H31: 0
A32: 2212 | B32: 6121 | E32: Budovy, haly a stavby | F32: 0 | G32: 74112.5 | H32: 74112.5 | I32: Rekonstrukce silnice Mezice II. Etapa
A33: 2212 | D33: Silnice | F33: 479000 | G33: =G32 -> 74112.5 | H33: =G33+F33 -> 553112.5
A34: 2219 | B34: 6121 | E34: Budovy, haly a stavby | F34: 0 | G34: 82200.76 | H34: =G34 -> 82200.76 | I34: Vjezd pí. Adamcová
A35: 2219 | D35: Ostátní záležitosti pozemních komunikací | F35: 247510 | G35: =G34 -> 82200.76 | H35: =G35+F35 -> 329710.76
A36: 2292 | B36: 5339 | E36: Neinvestiční transfery cizím přísp.org. | F36: 260000 | G36: -16566.2 | H36: =F36+G36 -> 243433.8 | I36: dopravní obslužnost - oprava částky
A37: 2292 | D37: Dopravní obslužnost | F37: 260000 | G37: =G36 -> -16566.2 | H37: =H36 -> 243433.8
A38: 3314 | B38: 5168 | E38: Zpracování dat a služby souv. S inf. A kom. Technol | F38: 0 | G38: 1815 | H38: 1815 | I38: Tritius
A39: 3314 | B39: 5169 | E39: Nákup ostatních služeb | F39: 5000 | G39: -1815 | H39: =G39+F39 -> 3185
A40: 3314 | D40: Činnosti knihovnické | F40: =43000 -> 43000 | G40: =G39+G38 -> 0 | H40: =G40+F40 -> 43000
A41: 3612 | B41: 6121 | E41: Budovy, haly a stavby | F41: 0 | G41: 42882.4 | H41: =G41+F41 -> 42882.4 | I41: L39
A42: 3612 | D42: Bytové hospodářství | F42: 210000 | G42: =G41 -> 42882.4 | H42: 252882.4
A43: 3613 | B43: 5153 | E43: Plyn | F43: 0 | G43: 10000 | H43: 10000 | I43: N107
A44: 3613 | D44: Nebytové hospodářství | F44: 51000 | G44: =G43 -> 10000 | H44: 61000
A45: 3631 | B45: 5171 | E45: opravy a udržování | F45: 50000 | G45: -10000 | H45: =G45+F45 -> 40000
A46: 3631 | B46: 6121 | E46: Stavby | F46: 20000 | G46: 10000 | H46: =G46+F46 -> 30000 | I46: osvětlení
A47: 3631 | D47: Veřejné osvětlení | F47: 300000 | G47: =G46+G45 -> 0 | H47: 300000
A48: 3639 | B48: 6130 | E48: Pozemky | F48: 54935.7 | G48: 4448.3 | H48: 59384 | I48: doplatek Zvěřovo
A49: 3639 | B49: 6121 | E49: Budovy, haly a stavby | F49: 950000 | G49: =16566.2+8000 -> 24566.2 | H49: 974566.2 | I49: výkup pozemků projekt Nad Strání
A50: 3639 | D50: Komunální služby a územní rozvoj j.n | F50: 7667935.7 | G50: =SUM(G49)+G48 -> 29014.5 | H50: 7696950.2
A51: 3341 | B51: 5169 | E51: Nákup ostatních služeb | F51: 3000 | G51: 2000 | H51: =G51+F51 -> 5000 | I51: poplatek kminočet
A52: 3341 | D52: Rozhlas a Televize | F52: 6000 | G52: =G51 -> 2000 | H52: =G52+F52 -> 8000
D54: Celkem ZMĚNY ve VÝDAJÍCH | F54: 33700619.7 | G54: =G37+G31+G28+G35+G33+G50+G42+G44+G40+G52 -> -2.182787284e-11 | H54: =G54+F54 -> 33700619.7
D56: Celkem VÝDAJE | G56: =F54 -> 33700619.7 | H56: =G54 -> -2.182787284e-11 | I56: =H54 -> 33700619.7
D58: Celkem 5XXX
D59: Celkem 6XXX
A62: FINANCOVÁNÍ
A63: PAR | B63: POL | C63: UZ | D63: PARAGRAF | E63: popis | F63: Rozpočet na rok 2022 | G63: změna ROZP | H63: ROZP po ZMĚNĚ | I63: POZNÁMKA
D66: Celkem ZMĚNY ve FINANCOVÁNÍ: | H66: =H64 -> 0
D69: REKAPITULACE:
D71: Celkem PŘÍJMY | G71: =F16 -> 33700619.7 | I71: =H71+G71 -> 33700619.7
D72: Celkem FINANCOVÁNÍ: | G72: 0 | H72: =H66 -> 0 | I72: =H72+G72 -> 0
D73: Celkem PŘÍJMY+FINANCOVÁNÍ | G73: =SUM(G71:G72) -> 33700619.7 | I73: =I72+I71 -> 33700619.7
D75: Celkem VÝDAJE | G75: =F54 -> 33700619.7 | I75: =I73 -> 33700619.7
A78: Důvodová zpráva k rozpočtovému opatření č. 1 /2022
A80: Přesun prostředků v rámci nezajištěného výdaje je Čerpán z rezervy obce.
A82: Správce rozpočtu :
A84: Starosta obce :
A86: Rada obce schvaluje dne 10. 1. 2022 rozpočtové opatření č. 1/2022 v předloženém rozsahu.

Sheet List2
A1: TEXTY PRO FORMULÁŘ ÚPRAVA ROZPOČTU - na začátek kopírují se řádky 3-13
A2: poznámka: Texty, které budou přenášeny z tohoto formuláře, musí být zapsány pouze ve sloupci A
A5: Obec , IČ: Náklo, 00299251
A7: Rozpočtové změny roku 2019 -duben
A9: V souladu s ustanovením § 16 zákona č. 250/2000 Sb., o rozpočtových pravidlech územních rozpočtů dojde k rozpočtovému
A10: opatření v případě změn rozpočtových prostředků na závazných ukazatelích.
A12: Rozpočtové opatření č. 1/2019 (předloženo na ZQ 6. 6. 2018) a doplněno při jednání na ZO
A14: TEXTY PRO FORMULÁŘ ÚPRAVA ROZPOČTU - na začátek kopírují se řádky 16-32
A16: Důvodová zpráva k rozpočtovému opatření č. 1/2019
A18: Přesun prostředků v rámci nezajištěného výdaje je Čerpán z rezervy obce.
A20: Správce rozpočtu :
A22: Starosta obce :
A24: ZO schvaluje dne 6. 6. 2018 rozpočtové opatření č. 3/2018 v předloženém rozsahu Usnesením č. 1038/1860

Sheet List3
